[Event "Late-Titled-Tuesday-Blitz-June-25-2024"]
[Site "Chess.com"]
[Date "2024.06.25"]
[Round "10"]
[White "Slovak_fighter2000"]
[Black "Stanbad1"]
[Result "1-0"]
[WhiteElo "2523"]
[BlackElo "2699"]
[TimeControl "180+1"]
[EndTime "15:55:58 PDT"]
[Termination "Slovak_fighter2000 won by checkmate"]

1. e4 {[%clk 0:03:00.9]} 1... e6 {[%clk 0:02:59.8]} 2. d4 {[%clk 0:03:00.1]}
2... d5 {[%clk 0:03:00.1]} 3. exd5 {[%clk 0:02:59.4]} 3... exd5 {[%clk 0:03:00]}
4. Nf3 {[%clk 0:02:59.7]} 4... Bd6 {[%clk 0:02:58.7]} 5. c4 {[%clk 0:02:55.9]}
5... dxc4 {[%clk 0:02:58]} 6. Bxc4 {[%clk 0:02:54.6]} 6... Nf6 {[%clk
0:02:58.1]} 7. O-O {[%clk 0:02:53.8]} 7... O-O {[%clk 0:02:58.1]} 8. Nc3 {[%clk
0:02:54]} 8... Bg4 {[%clk 0:02:58.1]} 9. Bg5 {[%clk 0:02:53.1]} 9... h6 {[%clk
0:02:57.1]} 10. Bh4 {[%clk 0:02:51.4]} 10... Nc6 {[%clk 0:02:57.4]} 11. h3
{[%clk 0:02:48.2]} 11... Bxf3 {[%clk 0:02:55.4]} 12. Qxf3 {[%clk 0:02:45.5]}
12... Nxd4 {[%clk 0:02:55.6]} 13. Qxb7 {[%clk 0:02:43.7]} 13... Qb8 {[%clk
0:02:44.5]} 14. Qxb8 {[%clk 0:02:37]} 14... Raxb8 {[%clk 0:02:43.5]} 15. Bxf6
{[%clk 0:02:36.9]} 15... gxf6 {[%clk 0:02:42.7]} 16. b3 {[%clk 0:02:35.7]} 16...
Be5 {[%clk 0:02:42.4]} 17. f4 {[%clk 0:02:22.3]} 17... Bd6 {[%clk 0:02:40.7]}
18. Rad1 {[%clk 0:02:12.1]} 18... Rfd8 {[%clk 0:02:39.5]} 19. Kh1 {[%clk
0:02:02.7]} 19... Nf5 {[%clk 0:02:38.2]} 20. Rd3 {[%clk 0:01:47.8]} 20... h5
{[%clk 0:02:27.8]} 21. g4 {[%clk 0:01:45.3]} 21... hxg4 {[%clk 0:02:23.8]} 22.
hxg4 {[%clk 0:01:46.2]} 22... Nh6 {[%clk 0:02:23.6]} 23. g5 {[%clk 0:01:42.7]}
23... Nf5 {[%clk 0:02:23.3]} 24. gxf6 {[%clk 0:01:31.9]} 24... Bc5 {[%clk
0:02:22.9]} 25. Rfd1 {[%clk 0:01:25.3]} 25... Rd6 {[%clk 0:02:20.7]} 26. Rxd6
{[%clk 0:01:22.6]} 26... Bxd6 {[%clk 0:02:17.8]} 27. Ne4 {[%clk 0:01:16.4]}
27... Bxf4 {[%clk 0:02:16]} 28. Rd7 {[%clk 0:01:15.6]} 28... Rf8 {[%clk
0:02:13.5]} 29. Kg2 {[%clk 0:00:41.1]} 29... Nd6 {[%clk 0:02:10.9]} 30. Nxd6
{[%clk 0:00:38.1]} 30... Bxd6 {[%clk 0:02:11.4]} 31. Kf3 {[%clk 0:00:34.1]}
31... Be5 {[%clk 0:02:10]} 32. Kg4 {[%clk 0:00:34.6]} 32... Bxf6 {[%clk
0:02:09.2]} 33. Rxc7 {[%clk 0:00:34.4]} 33... Bd4 {[%clk 0:02:09.2]} 34. Kf5
{[%clk 0:00:33.6]} 34... Kg7 {[%clk 0:02:09.1]} 35. b4 {[%clk 0:00:30.7]} 35...
Bb6 {[%clk 0:02:08]} 36. Rb7 {[%clk 0:00:27.4]} 36... Bd4 {[%clk 0:01:53.6]} 37.
a4 {[%clk 0:00:27.2]} 37... Bb6 {[%clk 0:01:53.3]} 38. a5 {[%clk 0:00:27.1]}
38... Bd4 {[%clk 0:01:53.4]} 39. b5 {[%clk 0:00:27.1]} 39... Bc5 {[%clk
0:01:51.4]} 40. Rc7 {[%clk 0:00:21.4]} 40... Be3 {[%clk 0:01:48.8]} 41. b6
{[%clk 0:00:15.9]} 41... axb6 {[%clk 0:01:48.3]} 42. a6 {[%clk 0:00:16.4]} 42...
Ra8 {[%clk 0:01:23.4]} 43. Rxf7+ {[%clk 0:00:14]} 43... Kh6 {[%clk 0:01:23.8]}
44. Bd3 {[%clk 0:00:07.3]} 44... Bc5 {[%clk 0:01:19]} 45. Be4 {[%clk 0:00:05.7]}
45... Rxa6 {[%clk 0:01:17.3]} 46. Kf4 {[%clk 0:00:04.8]} 46... Be3+ {[%clk
0:01:02.7]} 47. Kxe3 {[%clk 0:00:04.7]} 47... Kg5 {[%clk 0:01:02.7]} 48. Rf5+
{[%clk 0:00:03.9]} 48... Kg4 {[%clk 0:01:01.8]} 49. Rb5 {[%clk 0:00:04.5]} 49...
Ra3+ {[%clk 0:01:01.1]} 50. Bd3 {[%clk 0:00:04.6]} 50... Rc3 {[%clk 0:00:59.8]}
51. Rxb6 {[%clk 0:00:04.9]} 51... Rc5 {[%clk 0:00:58.8]} 52. Rg6+ {[%clk
0:00:04.8]} 52... Rg5 {[%clk 0:00:59.4]} 53. Rf6 {[%clk 0:00:04.9]} 53... Re5+
{[%clk 0:00:59.5]} 54. Be4 {[%clk 0:00:04.8]} 54... Rg5 {[%clk 0:00:59]} 55.
Rf4+ {[%clk 0:00:04.8]} 55... Kg3 {[%clk 0:00:59.3]} 56. Rf1 {[%clk 0:00:04.2]}
56... Ra5 {[%clk 0:00:56.3]} 57. Rg1+ {[%clk 0:00:04.4]} 57... Kh2 {[%clk
0:00:55.5]} 58. Rg2+ {[%clk 0:00:03.4]} 58... Kh3 {[%clk 0:00:55.4]} 59. Kf4
{[%clk 0:00:02.4]} 59... Ra1 {[%clk 0:00:51.3]} 60. Rd2 {[%clk 0:00:02.8]} 60...
Rf1+ {[%clk 0:00:51]} 61. Bf3 {[%clk 0:00:03.4]} 61... Rg1 {[%clk 0:00:48.2]}
62. Rd8 {[%clk 0:00:03.9]} 62... Rg4+ {[%clk 0:00:40]} 63. Bxg4+ {[%clk
0:00:03.5]} 63... Kg2 {[%clk 0:00:40.9]} 64. Rd2+ {[%clk 0:00:03.3]} 64... Kf1
{[%clk 0:00:41.8]} 65. Ke3 {[%clk 0:00:02.9]} 65... Ke1 {[%clk 0:00:42.7]} 66.
Rd1# {[%clk 0:00:02.3]} 1-0

[Event "Late-Titled-Tuesday-Blitz-June-25-2024"]
[Site "Chess.com"]
[Date "2024.06.25"]
[Round "10"]
[White "ansko1999"]
[Black "grzechu96"]
[Result "1-0"]
[WhiteElo "2613"]
[BlackElo "2753"]
[TimeControl "180+1"]
[EndTime "15:56:04 PDT"]
[Termination "ansko1999 won on time"]

1. Nf3 {[%clk 0:03:00.9]} 1... d5 {[%clk 0:02:59.8]} 2. c3 {[%clk 0:03:01.8]}
2... Nf6 {[%clk 0:02:58.8]} 3. g3 {[%clk 0:03:02.1]} 3... Bf5 {[%clk 0:02:56.1]}
4. Bg2 {[%clk 0:03:01.4]} 4... h6 {[%clk 0:02:56.1]} 5. O-O {[%clk 0:03:01.3]}
5... c6 {[%clk 0:02:56.5]} 6. d4 {[%clk 0:03:00.6]} 6... e6 {[%clk 0:02:56.8]}
7. a4 {[%clk 0:02:54.7]} 7... Be7 {[%clk 0:02:43]} 8. a5 {[%clk 0:02:52.9]} 8...
O-O {[%clk 0:02:42.9]} 9. Qb3 {[%clk 0:02:51.7]} 9... Qc8 {[%clk 0:02:42.8]} 10.
Nbd2 {[%clk 0:02:43.2]} 10... c5 {[%clk 0:02:42.8]} 11. dxc5 {[%clk 0:02:37.6]}
11... Nbd7 {[%clk 0:02:41.8]} 12. Nd4 {[%clk 0:02:30.3]} 12... Nxc5 {[%clk
0:02:41.5]} 13. Qd1 {[%clk 0:02:29.6]} 13... Bh7 {[%clk 0:02:41.4]} 14. N4b3
{[%clk 0:02:17.9]} 14... Ncd7 {[%clk 0:02:38.3]} 15. Re1 {[%clk 0:02:13.8]}
15... Rd8 {[%clk 0:02:36.9]} 16. e3 {[%clk 0:02:00]} 16... Ne5 {[%clk
0:02:36.9]} 17. Nf3 {[%clk 0:01:52.3]} 17... Nc4 {[%clk 0:02:32.8]} 18. Nfd2
{[%clk 0:01:47.4]} 18... Qc7 {[%clk 0:02:28.5]} 19. Qe2 {[%clk 0:01:45.3]} 19...
e5 {[%clk 0:02:24.9]} 20. Nxc4 {[%clk 0:01:43.3]} 20... dxc4 {[%clk 0:02:25.8]}
21. Nd2 {[%clk 0:01:43.5]} 21... Bd3 {[%clk 0:02:24.8]} 22. Qd1 {[%clk
0:01:41.7]} 22... e4 {[%clk 0:02:21.5]} 23. Qa4 {[%clk 0:01:41.1]} 23... Rac8
{[%clk 0:02:01.9]} 24. a6 {[%clk 0:01:33.7]} 24... b6 {[%clk 0:02:01]} 25. b3
{[%clk 0:01:22.3]} 25... cxb3 {[%clk 0:01:58.9]} 26. Nxb3 {[%clk 0:01:23.2]}
26... Qxc3 {[%clk 0:01:57]} 27. Bd2 {[%clk 0:01:22.2]} 27... Qc4 {[%clk
0:01:45.7]} 28. Nd4 {[%clk 0:01:19.5]} 28... Qxa4 {[%clk 0:01:36.9]} 29. Rxa4
{[%clk 0:01:20.4]} 29... Bc5 {[%clk 0:01:30.8]} 30. Bc3 {[%clk 0:01:13.2]} 30...
Nd5 {[%clk 0:01:29.3]} 31. Bb2 {[%clk 0:01:05.1]} 31... Nb4 {[%clk 0:01:19.6]}
32. Bh3 {[%clk 0:00:52.4]} 32... Rc7 {[%clk 0:00:56.7]} 33. Bf1 {[%clk
0:00:51.1]} 33... Bxf1 {[%clk 0:00:42.8]} 34. Rxf1 {[%clk 0:00:49.7]} 34... Nd3
{[%clk 0:00:41.4]} 35. Ba1 {[%clk 0:00:45.8]} 35... Rcd7 {[%clk 0:00:16.5]} 36.
Rd1 {[%clk 0:00:30.6]} 36... Ne5 {[%clk 0:00:10.3]} 37. Kg2 {[%clk 0:00:15.1]}
37... Nf3 {[%clk 0:00:10]} 38. h3 {[%clk 0:00:11.2]} 38... f5 {[%clk 0:00:08.3]}
39. g4 {[%clk 0:00:10]} 39... g6 {[%clk 0:00:06.4]} 40. Rc1 {[%clk 0:00:08.7]}
40... Bxd4 {[%clk 0:00:05.6]} 41. Bxd4 {[%clk 0:00:07]} 41... Nxd4 {[%clk
0:00:03.9]} 42. Rxd4 {[%clk 0:00:07.5]} 42... Rxd4 {[%clk 0:00:02.7]} 43. exd4
{[%clk 0:00:08.4]} 43... Rd7 {[%clk 0:00:02.8]} 44. gxf5 {[%clk 0:00:07.2]}
44... gxf5 {[%clk 0:00:03.5]} 45. Rc8+ {[%clk 0:00:05.8]} 45... Kg7 {[%clk
0:00:03.2]} 46. Kg3 {[%clk 0:00:05.9]} 46... Kf6 {[%clk 0:00:02.5]} 47. Kf4
{[%clk 0:00:05.6]} 47... Rxd4 {[%clk 0:00:02.3]} 48. Rc6+ {[%clk 0:00:05.5]}
48... Ke7 {[%clk 0:00:01.8]} 49. Rxh6 {[%clk 0:00:05.9]} 1-0

[Event "Late-Titled-Tuesday-Blitz-June-25-2024"]
[Site "Chess.com"]
[Date "2024.06.25"]
[Round "10"]
[White "Duhless"]
[Black "Durarbayli"]
[Result "1-0"]
[WhiteElo "3097"]
[BlackElo "2960"]
[TimeControl "180+1"]
[EndTime "15:56:05 PDT"]
[Termination "Duhless won by resignation"]

1. d4 {[%clk 0:03:00.9]} 1... d5 {[%clk 0:03:00.3]} 2. Nf3 {[%clk 0:03:00.5]}
2... Nf6 {[%clk 0:03:00.2]} 3. c4 {[%clk 0:03:01]} 3... c6 {[%clk 0:03:00.7]} 4.
cxd5 {[%clk 0:02:59.4]} 4... cxd5 {[%clk 0:03:01.6]} 5. Nc3 {[%clk 0:02:59.5]}
5... Nc6 {[%clk 0:03:02.1]} 6. Bf4 {[%clk 0:02:59.9]} 6... a6 {[%clk 0:03:02.4]}
7. Qb3 {[%clk 0:02:58.2]} 7... Na5 {[%clk 0:02:53.3]} 8. Qc2 {[%clk 0:02:57.2]}
8... g6 {[%clk 0:02:48.9]} 9. e3 {[%clk 0:02:54.2]} 9... Bf5 {[%clk 0:02:47.5]}
10. Bd3 {[%clk 0:02:53]} 10... e6 {[%clk 0:02:43.2]} 11. O-O {[%clk 0:02:39]}
11... Be7 {[%clk 0:02:26.7]} 12. Rfc1 {[%clk 0:02:22.7]} 12... O-O {[%clk
0:02:19.8]} 13. h3 {[%clk 0:02:20.4]} 13... Rc8 {[%clk 0:02:18]} 14. Qe2 {[%clk
0:02:19.5]} 14... Bxd3 {[%clk 0:02:10.2]} 15. Qxd3 {[%clk 0:02:19.3]} 15... b5
{[%clk 0:02:03.9]} 16. Rc2 {[%clk 0:02:16.2]} 16... Nc4 {[%clk 0:01:48.4]} 17.
Rac1 {[%clk 0:02:13.3]} 17... Qa5 {[%clk 0:01:48.3]} 18. b3 {[%clk 0:02:09.2]}
18... Ba3 {[%clk 0:01:22.4]} 19. bxc4 {[%clk 0:01:57.7]} 19... dxc4 {[%clk
0:01:20.9]} 20. Qd1 {[%clk 0:01:22.9]} 20... Bxc1 {[%clk 0:01:09.4]} 21. Qxc1
{[%clk 0:01:20]} 21... b4 {[%clk 0:01:09.7]} 22. Be5 {[%clk 0:01:10.8]} 22...
Nd5 {[%clk 0:00:55.9]} 23. Ne4 {[%clk 0:00:49]} 23... c3 {[%clk 0:00:44.3]} 24.
Nf6+ {[%clk 0:00:48.4]} 24... Nxf6 {[%clk 0:00:43.9]} 25. Bxf6 {[%clk
0:00:49.3]} 25... h6 {[%clk 0:00:32.1]} 26. e4 {[%clk 0:00:47.6]} 26... Kh7
{[%clk 0:00:32.4]} 27. Ne5 {[%clk 0:00:40.6]} 27... Qb5 {[%clk 0:00:15.6]} 28.
Ng4 {[%clk 0:00:32.8]} 28... g5 {[%clk 0:00:15.8]} 29. Be7 {[%clk 0:00:30.3]}
29... f5 {[%clk 0:00:06.9]} 30. Bxf8 {[%clk 0:00:17.7]} 30... fxg4 {[%clk
0:00:06.8]} 31. Bc5 {[%clk 0:00:17.5]} 31... gxh3 {[%clk 0:00:07.2]} 32. Qe3
{[%clk 0:00:08.6]} 32... hxg2 {[%clk 0:00:06.9]} 33. Kxg2 {[%clk 0:00:08.8]}
33... a5 {[%clk 0:00:06.5]} 34. Rc1 {[%clk 0:00:08.6]} 34... Qd7 {[%clk
0:00:02.7]} 35. Rh1 {[%clk 0:00:07.7]} 35... Rg8 {[%clk 0:00:02.6]} 36. Qf3
{[%clk 0:00:05.4]} 36... Rg6 {[%clk 0:00:01]} 37. Qf8 {[%clk 0:00:05.1]} 37...
Qg7 {[%clk 0:00:01.5]} 38. Qxg7+ {[%clk 0:00:05.1]} 38... Kxg7 {[%clk
0:00:02.4]} 39. Kf3 {[%clk 0:00:05.4]} 39... Rf6+ {[%clk 0:00:01.8]} 40. Ke3
{[%clk 0:00:05.7]} 40... Rf4 {[%clk 0:00:02.1]} 41. Rc1 {[%clk 0:00:05.5]} 41...
h5 {[%clk 0:00:01.9]} 42. a3 {[%clk 0:00:05.4]} 42... h4 {[%clk 0:00:01.8]} 43.
axb4 {[%clk 0:00:05]} 43... axb4 {[%clk 0:00:02.7]} 44. Bxb4 {[%clk 0:00:05.4]}
44... h3 {[%clk 0:00:02.9]} 45. Bxc3 {[%clk 0:00:05.5]} 45... Kg6 {[%clk
0:00:02.2]} 46. Rh1 {[%clk 0:00:05.4]} 46... Rh4 {[%clk 0:00:02.3]} 47. f3
{[%clk 0:00:05.9]} 47... h2 {[%clk 0:00:02.8]} 48. Be1 {[%clk 0:00:05.8]} 48...
Rh3 {[%clk 0:00:02.9]} 49. Kf2 {[%clk 0:00:06.4]} 49... Kh5 {[%clk 0:00:03.2]}
50. Kg2 {[%clk 0:00:06.4]} 50... g4 {[%clk 0:00:03.9]} 51. Rxh2 {[%clk 0:00:04]}
1-0

[Event "Late-Titled-Tuesday-Blitz-June-25-2024"]
[Site "Chess.com"]
[Date "2024.06.25"]
[Round "10"]
[White "corvachesky"]
[Black "nitpicker"]
[Result "1-0"]
[WhiteElo "2467"]
[BlackElo "2327"]
[TimeControl "180+1"]
[EndTime "15:56:06 PDT"]
[Termination "corvachesky won by resignation"]

1. Nf3 {[%clk 0:02:56.5]} 1... Nf6 {[%clk 0:02:58.4]} 2. g3 {[%clk 0:02:56.4]}
2... d5 {[%clk 0:02:57.6]} 3. Bg2 {[%clk 0:02:57.3]} 3... e6 {[%clk 0:02:57.1]}
4. O-O {[%clk 0:02:56.8]} 4... Be7 {[%clk 0:02:57.1]} 5. d4 {[%clk 0:02:57.2]}
5... b6 {[%clk 0:02:57]} 6. c4 {[%clk 0:02:56.6]} 6... c6 {[%clk 0:02:52.3]} 7.
Nbd2 {[%clk 0:02:55.1]} 7... O-O {[%clk 0:02:51.4]} 8. Qc2 {[%clk 0:02:55]} 8...
Bb7 {[%clk 0:02:50.3]} 9. e4 {[%clk 0:02:54.8]} 9... Nbd7 {[%clk 0:02:49.1]} 10.
e5 {[%clk 0:02:51.3]} 10... Ne8 {[%clk 0:02:49.1]} 11. h4 {[%clk 0:02:51.7]}
11... h6 {[%clk 0:02:49.1]} 12. Rd1 {[%clk 0:02:48.2]} 12... Rc8 {[%clk
0:02:49]} 13. cxd5 {[%clk 0:02:45.4]} 13... cxd5 {[%clk 0:02:48.4]} 14. Qd3
{[%clk 0:02:45.3]} 14... Nb8 {[%clk 0:02:47.3]} 15. Nf1 {[%clk 0:02:42.6]} 15...
Ba6 {[%clk 0:02:44]} 16. Qd2 {[%clk 0:02:30.5]} 16... Nc6 {[%clk 0:02:41.5]} 17.
a3 {[%clk 0:02:30.3]} 17... Na5 {[%clk 0:02:40]} 18. Qf4 {[%clk 0:02:20.4]}
18... Nb3 {[%clk 0:02:29.7]} 19. Rb1 {[%clk 0:02:18.8]} 19... Be2 {[%clk
0:02:24.6]} 20. Re1 {[%clk 0:02:13.5]} 20... Bd3 {[%clk 0:02:24.3]} 21. Be3
{[%clk 0:02:09.4]} 21... Bxb1 {[%clk 0:02:23.5]} 22. Rxb1 {[%clk 0:02:09.9]}
22... f5 {[%clk 0:02:13.6]} 23. g4 {[%clk 0:01:56.3]} 23... Na5 {[%clk
0:01:36.8]} 24. gxf5 {[%clk 0:01:38.7]} 24... Rxf5 {[%clk 0:01:35.8]} 25. Qg4
{[%clk 0:01:38.6]} 25... Kh8 {[%clk 0:01:26.2]} 26. Ng3 {[%clk 0:01:36.3]} 26...
Qd7 {[%clk 0:01:15.7]} 27. Nxf5 {[%clk 0:01:32.9]} 27... exf5 {[%clk 0:01:16.4]}
28. Qg6 {[%clk 0:01:31.5]} 28... Rc6 {[%clk 0:01:12.9]} 29. Qf7 {[%clk 0:01:26]}
29... Nc7 {[%clk 0:01:05.6]} 30. Bh3 {[%clk 0:01:19.1]} 30... Qe6 {[%clk
0:00:52.5]} 31. Qxf5 {[%clk 0:01:08]} 31... Qxf5 {[%clk 0:00:50.6]} 32. Bxf5
{[%clk 0:01:08.9]} 32... Nc4 {[%clk 0:00:50.4]} 33. Rc1 {[%clk 0:01:03.6]} 33...
b5 {[%clk 0:00:43.4]} 34. b3 {[%clk 0:00:38]} 34... Na5 {[%clk 0:00:43.2]} 35.
Rxc6 {[%clk 0:00:38.2]} 35... Nxc6 {[%clk 0:00:44.1]} 36. Kf1 {[%clk 0:00:34.3]}
36... Bxa3 {[%clk 0:00:42.6]} 37. Ke2 {[%clk 0:00:33.9]} 37... Kg8 {[%clk
0:00:41]} 38. Ne1 {[%clk 0:00:29]} 38... Na5 {[%clk 0:00:39.3]} 39. Bc2 {[%clk
0:00:26.2]} 39... Be7 {[%clk 0:00:34.4]} 40. Ng2 {[%clk 0:00:23.7]} 40... Ne6
{[%clk 0:00:34.2]} 41. f4 {[%clk 0:00:22.5]} 41... Nc6 {[%clk 0:00:30.5]} 42.
Kd3 {[%clk 0:00:20.9]} 42... a5 {[%clk 0:00:29.4]} 43. Bd2 {[%clk 0:00:18.1]}
43... Kf7 {[%clk 0:00:28.8]} 44. f5 {[%clk 0:00:18.4]} 44... Nc7 {[%clk
0:00:28.3]} 45. Nf4 {[%clk 0:00:18.3]} 45... Nb4+ {[%clk 0:00:24.9]} 46. Bxb4
{[%clk 0:00:18]} 46... Bxb4 {[%clk 0:00:25.6]} 47. Bd1 {[%clk 0:00:16.2]} 47...
Be7 {[%clk 0:00:22.2]} 48. Bf3 {[%clk 0:00:14.9]} 48... Bxh4 {[%clk 0:00:21.5]}
49. Nxd5 {[%clk 0:00:13.8]} 49... Nxd5 {[%clk 0:00:20]} 50. Bxd5+ {[%clk
0:00:14.7]} 50... Ke7 {[%clk 0:00:20.3]} 51. Bc6 {[%clk 0:00:14.4]} 51... b4
{[%clk 0:00:20.2]} 52. Ke4 {[%clk 0:00:14.4]} 52... Be1 {[%clk 0:00:19.6]} 53.
d5 {[%clk 0:00:14.3]} 53... Bc3 {[%clk 0:00:19.5]} 54. d6+ {[%clk 0:00:14.4]}
54... Kd8 {[%clk 0:00:19.9]} 55. e6 {[%clk 0:00:14]} 55... Bf6 {[%clk
0:00:20.1]} 56. Kd5 {[%clk 0:00:13.6]} 56... h5 {[%clk 0:00:19.8]} 57. Kc5
{[%clk 0:00:13.8]} 57... h4 {[%clk 0:00:19.8]} 58. Kb5 {[%clk 0:00:14]} 58...
Be5 {[%clk 0:00:18.5]} 59. e7+ {[%clk 0:00:13.1]} 1-0

[Event "Late-Titled-Tuesday-Blitz-June-25-2024"]
[Site "Chess.com"]
[Date "2024.06.25"]
[Round "10"]
[White "Akhayan"]
[Black "ATM622"]
[Result "1-0"]
[WhiteElo "2414"]
[BlackElo "2520"]
[TimeControl "180+1"]
[EndTime "15:56:07 PDT"]
[Termination "Akhayan won on time"]

1. e4 {[%clk 0:03:00.9]} 1... c6 {[%clk 0:03:00.1]} 2. d4 {[%clk 0:02:55.8]}
2... d5 {[%clk 0:03:00.4]} 3. Nc3 {[%clk 0:02:56.4]} 3... dxe4 {[%clk
0:02:59.9]} 4. Nxe4 {[%clk 0:02:56.9]} 4... Bf5 {[%clk 0:02:59.5]} 5. Ng3 {[%clk
0:02:54.5]} 5... Bg6 {[%clk 0:02:59.9]} 6. Bc4 {[%clk 0:02:54.7]} 6... e6 {[%clk
0:02:54.5]} 7. N1e2 {[%clk 0:02:54.7]} 7... Bd6 {[%clk 0:02:53.9]} 8. h4 {[%clk
0:02:55]} 8... h6 {[%clk 0:02:53.5]} 9. Nf4 {[%clk 0:02:55.6]} 9... Bxf4 {[%clk
0:02:53.5]} 10. Bxf4 {[%clk 0:02:55.6]} 10... Nf6 {[%clk 0:02:53.5]} 11. Qe2
{[%clk 0:02:55.2]} 11... Nd5 {[%clk 0:02:52.5]} 12. Bd2 {[%clk 0:02:54.1]} 12...
Bxc2 {[%clk 0:02:46.4]} 13. Nh5 {[%clk 0:02:44.5]} 13... Bg6 {[%clk 0:02:22.8]}
14. Nxg7+ {[%clk 0:02:39.3]} 14... Kf8 {[%clk 0:02:23]} 15. Nh5 {[%clk
0:02:37.6]} 15... Nd7 {[%clk 0:02:11.1]} 16. Bxd5 {[%clk 0:02:10.1]} 16... cxd5
{[%clk 0:02:08.7]} 17. Bb4+ {[%clk 0:02:08.6]} 17... Kg8 {[%clk 0:02:09]} 18.
Nf4 {[%clk 0:02:07.6]} 18... Qf6 {[%clk 0:02:04.5]} 19. Nxg6 {[%clk 0:02:02.7]}
19... Qxg6 {[%clk 0:01:53.5]} 20. O-O {[%clk 0:02:02]} 20... Nf6 {[%clk
0:01:46]} 21. Bd6 {[%clk 0:01:59]} 21... Kh7 {[%clk 0:01:42.8]} 22. Be5 {[%clk
0:01:58.3]} 22... Rhg8 {[%clk 0:01:43]} 23. Qf3 {[%clk 0:01:51.2]} 23... Ne4
{[%clk 0:01:40.7]} 24. h5 {[%clk 0:01:47.7]} 24... Qf5 {[%clk 0:01:40.5]} 25.
Qxf5+ {[%clk 0:01:44.7]} 25... exf5 {[%clk 0:01:41.4]} 26. f3 {[%clk 0:01:40]}
26... Nd2 {[%clk 0:01:40]} 27. Rfd1 {[%clk 0:01:38.8]} 27... Nxf3+ {[%clk
0:01:39.5]} 28. Kf2 {[%clk 0:01:37.4]} 28... Ng5 {[%clk 0:01:39.7]} 29. Rac1
{[%clk 0:01:29.9]} 29... Ne4+ {[%clk 0:01:37]} 30. Kf3 {[%clk 0:01:30.3]} 30...
Rac8 {[%clk 0:01:34.5]} 31. Kf4 {[%clk 0:01:20.8]} 31... Rg4+ {[%clk 0:01:28.3]}
32. Kxf5 {[%clk 0:01:18.1]} 32... Rcg8 {[%clk 0:01:27.9]} 33. Bf4 {[%clk
0:01:04.3]} 33... Rxg2 {[%clk 0:00:33.1]} 34. Rc7 {[%clk 0:01:02.4]} 34... R8g7
{[%clk 0:00:31.7]} 35. Ke5 {[%clk 0:00:47.9]} 35... f6+ {[%clk 0:00:30.9]} 36.
Kxd5 {[%clk 0:00:45]} 36... Rxc7 {[%clk 0:00:30.9]} 37. Bxc7 {[%clk 0:00:44]}
37... Re2 {[%clk 0:00:25.6]} 38. Bf4 {[%clk 0:00:35]} 38... f5 {[%clk
0:00:20.4]} 39. Rc1 {[%clk 0:00:24.8]} 39... Rxb2 {[%clk 0:00:14.8]} 40. Rc7+
{[%clk 0:00:24]} 40... Kg8 {[%clk 0:00:14.9]} 41. Bxh6 {[%clk 0:00:23.3]} 41...
Nf6+ {[%clk 0:00:08.7]} 42. Ke6 {[%clk 0:00:22]} 42... Nxh5 {[%clk 0:00:09]} 43.
Kxf5 {[%clk 0:00:18.9]} 43... Rxa2 {[%clk 0:00:03.5]} 44. Kg6 {[%clk 0:00:18.6]}
44... Rg2+ {[%clk 0:00:01.7]} 45. Kxh5 {[%clk 0:00:18.2]} 45... Rb2 {[%clk
0:00:01.5]} 46. Kg6 {[%clk 0:00:16.9]} 46... Rg2+ {[%clk 0:00:01.4]} 47. Bg5
{[%clk 0:00:17.1]} 47... Rf2 {[%clk 0:00:01.6]} 48. Rxb7 {[%clk 0:00:12.2]}
48... a5 {[%clk 0:00:01.9]} 49. Ra7 {[%clk 0:00:12.3]} 49... Rf8 {[%clk
0:00:01.9]} 50. Bf6 {[%clk 0:00:11.7]} 50... Rc8 {[%clk 0:00:01.4]} 51. Rxa5
{[%clk 0:00:10.9]} 51... Rf8 {[%clk 0:00:01.3]} 52. Ra7 {[%clk 0:00:10.7]} 52...
Rb8 {[%clk 0:00:01.3]} 53. Be5 {[%clk 0:00:10.6]} 53... Rc8 {[%clk 0:00:01.2]}
54. Kf5 {[%clk 0:00:10.9]} 1-0